fUSD/lending_fUSD_20250111
["ID","MTS","AMOUNT","RATE_DAILY","PERIOD"]
[348485574,1736569843765,-596.84353469,9.996e-05,2]
[348485576,1736569843775,-506.25381714,9.996e-05,2]
[348485578,1736569843784,-943.48,9.996e-05,2]
[348485580,1736569843794,-507.60331187,9.996e-05,2]
[348485582,1736569843803,-509.88647375,9.996e-05,2]
[348485584,1736569843813,-517.78956155,9.996e-05,2]
[348485586,1736569843822,-509.32350651,9.996e-05,2]
[348485588,1736569843831,-500.0,9.996e-05,2]
[348485590,1736569843841,-500.0,9.996e-05,2]
[348485591,1736569843850,-511.15668742,9.996e-05,2]
[348485592,1736569843860,-501.62716191,9.996e-05,2]
[348485593,1736569843869,-510.30364648,9.996e-05,2]
[348485594,1736569843879,-503.84290353,9.996e-05,2]
[348485595,1736569843888,-511.49991386,9.996e-05,2]
[348485596,1736569843897,-508.84964815,9.996e-05,2]
[348485597,1736569843907,-506.38017322,9.996e-05,2]
[348485598,1736569843916,-509.76635965,9.996e-05,2]
[348485599,1736569843925,-500.0,9.996e-05,2]
[348485600,1736569843935,-509.437082,9.996e-05,2]
[348485601,1736569843945,-500.0,9.996e-05,2]
[348485602,1736569843955,-504.01401632,9.996e-05,2]
[348485603,1736569843964,-503.70175183,9.996e-05,2]
[348485604,1736569843973,-505.84156539,9.996e-05,2]
[348485605,1736569843983,-500.0,9.996e-05,2]
[348485606,1736569843992,-507.08197091,9.996e-05,2]
[348485607,1736569844002,-500.0,9.996e-05,2]
[348485608,1736569844012,-509.67441483,9.996e-05,2]
[348485609,1736569844022,-505.19911301,9.996e-05,2]
[348485610,1736569844032,-510.15508236,9.996e-05,2]
[348485611,1736569844041,-506.98189539,9.996e-05,2]
[348485612,1736569844052,-500.0,9.996e-05,2]
[348485613,1736569844063,-502.1015573,9.996e-05,2]
[348485614,1736569844073,-507.66952669,9.996e-05,2]
[348485615,1736569844083,-563.7235715,9.996e-05,2]
[348485616,1736569844092,-500.0,9.996e-05,2]
[348485617,1736569844361,-505.46530885,9.996e-05,2]
[348485618,1736569844372,-500.0,9.996e-05,2]
[348485619,1736569844382,-500.0,9.996e-05,2]
[348485620,1736569844391,-508.56362647,9.996e-05,2]
[348485621,1736569844400,-500.0,9.996e-05,2]
[348485622,1736569844410,-506.28796639,9.996e-05,2]
[348485623,1736569844419,-500.0,9.996e-05,2]
[348485624,1736569844428,-500.0,9.996e-05,2]
[348485625,1736569844438,-502.92104817,9.996e-05,2]
[348485626,1736569844447,-513.42438065,9.996e-05,2]
[348485627,1736569844455,-1634.76,9.996e-05,2]
[348485628,1736569844464,-504.695144,9.996e-05,2]
[348485629,1736569844474,-385.9972437,9.996e-05,2]
[348485630,1736569844483,-514.2098893,9.996e-05,2]
[348485631,1736569844492,-500.0,9.996e-05,2]
[348485632,1736569844501,-500.0,9.996e-05,2]
[348485633,1736569844511,-500.0,9.996e-05,2]
[348485634,1736569844520,-500.0,9.996e-05,2]
[348485635,1736569844530,-500.0,9.996e-05,2]
[348485636,1736569844539,-500.0,9.996e-05,2]
[348485637,1736569844548,-509.46939857,9.996e-05,2]
[348485638,1736569844558,-502.72797594,9.996e-05,2]
[348485639,1736569844567,-510.02057685,9.996e-05,2]
[348485640,1736569844576,-500.0,9.996e-05,2]
[348485641,1736569844585,-488.07779059,9.996e-05,2]
[348485642,1736569844605,-11.92220941,9.996e-05,2]
[348485643,1736569844614,-500.0,9.996e-05,2]
[348485644,1736569844623,-509.58745725,9.996e-05,2]
[348485645,1736569844633,-512.30197179,9.996e-05,2]
[348485646,1736569844642,-502.05378049,9.996e-05,2]
[348485647,1736569844652,-500.0,9.996e-05,2]
[348485648,1736569844661,-500.0,9.996e-05,2]
[348485649,1736569844670,-500.0,9.996e-05,2]
[348485650,1736569844679,-509.50628215,9.996e-05,2]
[348485651,1736569844688,-504.5609027,9.996e-05,2]
[348485652,1736569844698,-505.85058463,9.996e-05,2]
[348485653,1736569844707,-517.32888218,9.996e-05,2]
[348485654,1736569844716,-501.23687724,9.996e-05,2]
[348485655,1736569844726,-503.67970563,9.996e-05,2]
[348485656,1736569844735,-502.61471287,9.996e-05,2]
[348485657,1736569844745,-500.0,9.996e-05,2]
[348485658,1736569844754,-509.61114848,9.996e-05,2]
[348485659,1736569844763,-500.8680478,9.996e-05,2]
[348485660,1736569844772,-495.60489267,9.996e-05,2]
[348485661,1736569844782,-500.0,9.996e-05,2]
[348485662,1736569844791,-507.36712361,9.996e-05,2]
[348485663,1736569844801,-503.73950492,9.996e-05,2]
[348485664,1736569844811,-500.0,9.996e-05,2]
[348485665,1736569844820,-504.58204553,9.996e-05,2]
[348485666,1736569844832,-516.61932402,9.996e-05,2]
[348485667,1736569844842,-500.0,9.996e-05,2]
[348485668,1736569844851,-502.1734849,9.996e-05,2]
[348485669,1736569844860,-502.72335414,9.996e-05,2]
[348485670,1736569844869,-502.05657362,9.996e-05,2]
[348485671,1736569844879,-502.08604622,9.996e-05,2]
[348485672,1736569844888,-500.0,9.996e-05,2]
[348485673,1736569844897,-503.99293337,9.996e-05,2]
[348485674,1736569844906,-500.0,9.996e-05,2]
[348485675,1736569844915,-508.85630814,9.996e-05,2]
[348485676,1736569844924,-453.09546666,9.996e-05,2]
[348485677,1736569844934,-513.71165902,9.996e-05,2]
[348485678,1736569844943,-722.54,9.996e-05,2]
[348485679,1736569844953,-500.0,9.996e-05,2]
[348485680,1736569844962,-500.0,9.996e-05,2]
[348485681,1736569844971,-500.0,9.996e-05,2]
[348485682,1736569844980,-501.95053623,9.996e-05,2]
[348485683,1736569844989,-500.0,9.996e-05,2]
[348485684,1736569844998,-500.0,9.996e-05,2]
[348485685,1736569845007,-500.0,9.996e-05,2]
[348485686,1736569845017,-503.30638519,9.996e-05,2]
[348485687,1736569845027,-500.0,9.996e-05,2]
[348485688,1736569845036,-507.64157199,9.996e-05,2]
[348485689,1736569845046,-536.22183919,9.996e-05,2]
[348485690,1736569845056,-506.83186277,9.996e-05,2]
[348485691,1736569845065,-503.64397025,9.996e-05,2]
[348485692,1736569845075,-500.0,9.996e-05,2]
[348485693,1736569845085,-502.70127743,9.996e-05,2]
[348485694,1736569845095,-502.85901859,9.996e-05,2]
[348485695,1736569845104,-256.14923843,9.996e-05,2]
[348485696,1736569845114,-503.81885097,9.996e-05,2]
[348485697,1736569845124,-500.0,9.996e-05,2]
[348485698,1736569845134,-503.28140515,9.996e-05,2]
[348485699,1736569845144,-504.94605163,9.996e-05,2]
[348485700,1736569845153,-500.0,9.996e-05,2]
[348485701,1736569845162,-504.40640153,9.996e-05,2]
[348485702,1736569845172,-500.0,9.996e-05,2]
[348485703,1736569845182,-369.614528,9.996e-05,2]
[348485704,1736569845193,-499.05300656,9.996e-05,2]
[348485705,1736569845203,-500.0,9.996e-05,2]
[348485706,1736569845212,-500.0,9.996e-05,2]
[348485707,1736569845221,-506.28412303,9.996e-05,2]
[348485708,1736569845230,-501.16525359,9.996e-05,2]
[348485709,1736569845241,-507.0454523,9.996e-05,2]
[348485710,1736569845250,-507.25869199,9.996e-05,2]
[348485711,1736569845259,-500.0,9.996e-05,2]
[348485712,1736569845273,-500.0,9.996e-05,2]
[348485713,1736569845284,-500.0,9.996e-05,2]
[348485714,1736569845297,-500.0,9.996e-05,2]
[348485715,1736569845307,-156.641603,9.996e-05,2]
[348485716,1736569845315,-500.0,9.996e-05,2]
[348485717,1736569845324,-500.0,9.996e-05,2]
[348485718,1736569845335,-500.0,9.996e-05,2]
[348485719,1736569845346,-501.43629776,9.996e-05,2]
[348485720,1736569845355,-500.0,9.996e-05,2]
[348485721,1736569845364,-542.12,9.996e-05,2]
[348485722,1736569845373,-519.58999203,9.996e-05,2]
[348485723,1736569845383,-500.0,9.996e-05,2]
[348485724,1736569845392,-156.833203,9.996e-05,2]
[348485725,1736569845402,-500.0,9.996e-05,2]
[348485726,1736569845411,-500.0,9.996e-05,2]
[348485727,1736569845420,-503.76668754,9.996e-05,2]
[348485728,1736569845429,-518.01675889,9.996e-05,2]
[348485729,1736569845438,-500.0,9.996e-05,2]
[348485730,1736569845447,-500.0,9.996e-05,2]
[348485731,1736569845456,-500.0,9.996e-05,2]
[348485732,1736569845465,-500.0,9.996e-05,2]
[348485733,1736569845474,-501.84712135,9.996e-05,2]
[348485734,1736569845484,-500.0,9.996e-05,2]
[348485735,1736569845493,-500.0,9.996e-05,2]
[348485736,1736569845502,-552.43,9.996e-05,2]
[348485737,1736569845511,-506.1887658,9.996e-05,2]
[348485738,1736569845521,-450.73836111,9.996e-05,2]
[348485739,1736569845530,-500.0,9.996e-05,2]
[348485740,1736569845540,-500.0,9.996e-05,2]
[348485741,1736569845549,-500.0,9.996e-05,2]
[348485742,1736569845559,-501.79213169,9.996e-05,2]
[348485743,1736569845568,-500.0,9.996e-05,2]
[348485744,1736569845577,-508.64062302,9.996e-05,2]
[348485745,1736569845586,-502.51792076,9.996e-05,2]
[348485746,1736569845596,-539.81,9.996e-05,2]
[348485747,1736569845605,-309.95255956,9.996e-05,2]
[348485748,1736569845614,-503.26455922,9.996e-05,2]
[348485749,1736569845623,-500.0,9.996e-05,2]
[348485750,1736569845632,-500.0,9.996e-05,2]
[348485751,1736569845641,-500.0,9.996e-05,2]
[348485752,1736569845651,-397.9162387,9.996e-05,2]
[348485753,1736569845660,-512.65967616,9.996e-05,2]
[348485754,1736569845670,-500.0,9.996e-05,2]
[348485755,1736569845679,-549.762761,9.996e-05,2]
[348485756,1736569845689,-504.44356136,9.996e-05,2]
[348485757,1736569845699,-503.07577425,9.996e-05,2]
[348485758,1736569845710,-500.0,9.996e-05,2]
[348485759,1736569845719,-500.0,9.996e-05,2]
[348485760,1736569845727,-500.0,9.996e-05,2]
[348485761,1736569845737,-500.0,9.996e-05,2]
[348485762,1736569845746,-500.0,9.996e-05,2]
[348485763,1736569845755,-503.14628545,9.996e-05,2]
[348485764,1736569845764,-708.14,9.996e-05,2]
[348485765,1736569845774,-500.0,9.996e-05,2]
[348485766,1736569845783,-500.0,9.996e-05,2]
[348485767,1736569845792,-500.0,9.996e-05,2]
[348485768,1736569845801,-500.0,9.996e-05,2]
[348485769,1736569845811,-500.0,9.996e-05,2]
[348485770,1736569845821,-500.0,9.996e-05,2]
[348485771,1736569845830,-500.0,9.996e-05,2]
[348485772,1736569845839,-500.0,9.996e-05,2]
[348485773,1736569845848,-500.0,9.996e-05,2]
[348485774,1736569845857,-504.38782794,9.996e-05,2]
[348485775,1736569845867,-547.0,9.996e-05,2]
[348485776,1736569845876,-500.0,9.996e-05,2]
[348485777,1736569845886,-500.0,9.996e-05,2]
[348485778,1736569845895,-500.0,9.996e-05,2]
[348485779,1736569845905,-500.0,9.996e-05,2]
[348485780,1736569845914,-500.0,9.996e-05,2]
[348485781,1736569845924,-500.0,9.996e-05,2]
[348485782,1736569845934,-500.0,9.996e-05,2]
[348485783,1736569845944,-500.0,9.996e-05,2]
[348485784,1736569845954,-505.75683112,9.996e-05,2]
[348485785,1736569845963,-500.0,9.996e-05,2]
[348485786,1736569845972,-500.0,9.996e-05,2]
[348485787,1736569845981,-500.0,9.996e-05,2]
[348485788,1736569845991,-503.06349626,9.996e-05,2]
[348485789,1736569846000,-500.0,9.996e-05,2]
[348485790,1736569846010,-500.0,9.996e-05,2]
[348485791,1736569846019,-500.0,9.996e-05,2]
[348485792,1736569846028,-1984.36,9.996e-05,2]
[348485794,1736569846037,-500.0,9.996e-05,2]
[348485795,1736569846047,-500.0,9.996e-05,2]
[348485796,1736569846057,-500.0,9.996e-05,2]
[348485797,1736569846066,-500.0,9.996e-05,2]
[348485798,1736569846076,-500.0,9.996e-05,2]
[348485799,1736569846085,-500.0,9.996e-05,2]
[348485800,1736569846095,-500.0,9.996e-05,2]
[348485801,1736569846104,-564.25,9.996e-05,2]
[348485802,1736569846113,-500.0,9.996e-05,2]
[348485803,1736569846122,-500.0,9.996e-05,2]
[348485804,1736569846131,-500.0,9.996e-05,2]
[348485805,1736569846141,-500.0,9.996e-05,2]
[348485806,1736569846151,-500.0,9.996e-05,2]
[348485807,1736569846160,-500.0,9.996e-05,2]
[348485808,1736569846169,-500.0,9.996e-05,2]
[348485809,1736569846178,-502.05517712,9.996e-05,2]
[348485810,1736569846188,-458.41323564,9.996e-05,2]
[348485811,1736569846197,-510.89376916,9.996e-05,2]
[348485812,1736569846206,-500.0,9.996e-05,2]
[348485813,1736569846215,-500.0,9.996e-05,2]
[348485814,1736569846224,-500.0,9.996e-05,2]
[348485815,1736569846234,-504.52751507,9.996e-05,2]
[348485816,1736569846243,-500.0,9.996e-05,2]
[348485817,1736569846252,-500.0,9.996e-05,2]
[348485818,1736569846262,-500.0,9.996e-05,2]
[348485819,1736569846271,-500.0,9.996e-05,2]
[348485820,1736569846282,-500.0,9.996e-05,2]
[348485821,1736569846291,-509.20440183,9.996e-05,2]
[348485822,1736569846300,-500.0,9.996e-05,2]
[348485823,1736569846310,-500.0,9.996e-05,2]
[348485824,1736569846320,-500.0,9.996e-05,2]
[348485825,1736569846332,-500.0,9.996e-05,2]
[348485826,1736569846342,-500.0,9.996e-05,2]
[348485827,1736569846351,-455.88988748,9.996e-05,2]
[348485828,1736569846361,-500.0,9.996e-05,2]
[348485829,1736569846371,-500.0,9.996e-05,2]
[348485830,1736569846380,-503.69371574,9.996e-05,2]
[348485831,1736569846389,-500.0,9.996e-05,2]
[348485832,1736569846399,-500.0,9.996e-05,2]
[348485833,1736569846408,-500.0,9.996e-05,2]
[348485834,1736569846418,-500.0,9.996e-05,2]
[348485835,1736569846427,-501.39946164,9.996e-05,2]
[348485836,1736569846437,-500.0,9.996e-05,2]
[348485837,1736569846446,-504.20448408,9.996e-05,2]
[348485838,1736569846456,-500.0,9.996e-05,2]
[348485839,1736569846466,-500.0,9.996e-05,2]
[348485840,1736569846476,-500.0,9.996e-05,2]
[348485841,1736569846485,-500.0,9.996e-05,2]
[348485842,1736569846495,-500.0,9.996e-05,2]
[348485843,1736569846505,-500.0,9.996e-05,2]
[348485844,1736569846515,-500.0,9.996e-05,2]
[348485845,1736569846525,-500.0,9.996e-05,2]
[348485846,1736569846535,-500.0,9.996e-05,2]
[348485847,1736569846545,-500.0,9.996e-05,2]
[348485848,1736569846555,-222.18219426,9.996e-05,2]
[348485849,1736569846565,-464.31251887,9.996e-05,2]
[348485850,1736569846575,-500.0,9.996e-05,2]
[348485851,1736569846585,-500.0,9.996e-05,2]
[348485852,1736569846595,-500.0,9.996e-05,2]
[348485853,1736569846606,-500.0,9.996e-05,2]
[348485854,1736569846615,-505.80911969,9.996e-05,2]
[348485855,1736569846625,-505.83448735,9.996e-05,2]
[348485856,1736569846635,-500.0,9.996e-05,2]
[348485857,1736569846645,-500.26075602,9.996e-05,2]
[348485858,1736569846655,-509.21477126,9.996e-05,2]
[348485859,1736569846665,-500.0,9.996e-05,2]
[348485860,1736569846674,-501.14120222,9.996e-05,2]
[348485861,1736569846685,-500.0,9.996e-05,2]
[348485862,1736569846695,-500.0,9.996e-05,2]
[348485863,1736569846706,-500.0,9.996e-05,2]
[348485864,1736569846716,-500.0,9.996e-05,2]
[348485865,1736569846726,-500.0,9.996e-05,2]
[348485866,1736569846736,-500.0,9.996e-05,2]
[348485867,1736569846746,-500.0,9.996e-05,2]
[348485868,1736569846756,-500.0,9.996e-05,2]
[348485869,1736569846766,-602.20648777,9.996e-05,2]
[348485870,1736569846776,-484.95387797,9.996e-05,2]
[348485871,1736569846786,-500.0,9.996e-05,2]
[348485872,1736569846796,-500.0,9.996e-05,2]
[348485873,1736569846806,-500.0,9.996e-05,2]
[348485874,1736569846816,-500.0,9.996e-05,2]
[348485875,1736569846826,-500.0,9.996e-05,2]
[348485876,1736569846835,-500.0,9.996e-05,2]
[348485877,1736569846845,-500.66638713,9.996e-05,2]
[348485878,1736569846855,-623.30511535,9.996e-05,2]
[348485879,1736569846866,-500.0,9.996e-05,2]
[348485880,1736569846876,-500.0,9.996e-05,2]
[348485881,1736569846886,-500.0,9.996e-05,2]
[348485882,1736569846897,-505.72172096,9.996e-05,2]
[348485883,1736569846907,-500.0,9.996e-05,2]
[348485884,1736569846917,-504.27149288,9.996e-05,2]
[348485885,1736569846926,-500.0,9.996e-05,2]
[348485886,1736569846937,-503.17321131,9.996e-05,2]
[348485887,1736569846947,-500.0,9.996e-05,2]
[348485888,1736569846957,-500.0,9.996e-05,2]
[348485889,1736569846967,-500.0,9.996e-05,2]
[348485890,1736569846977,-500.0,9.996e-05,2]
[348485891,1736569846986,-500.69435734,9.996e-05,2]
[348485892,1736569846996,-500.0,9.996e-05,2]
[348485893,1736569847006,-500.0,9.996e-05,2]
[348485894,1736569847016,-500.0,9.996e-05,2]
[348485895,1736569847026,-581.0183359,9.996e-05,2]
[348485896,1736569847036,-500.0,9.996e-05,2]
[348485897,1736569847046,-500.0,9.996e-05,2]
[348485898,1736569847056,-500.0,9.996e-05,2]
[348485899,1736569847066,-500.0,9.996e-05,2]
[348485900,1736569847075,-500.0,9.996e-05,2]
[348485901,1736569847085,-502.54964451,9.996e-05,2]
[348485902,1736569847096,-500.0,9.996e-05,2]
[348485903,1736569847106,-500.0,9.996e-05,2]
[348485904,1736569847115,-500.0,9.996e-05,2]
[348485905,1736569847125,-500.0,9.996e-05,2]
[348485906,1736569847135,-500.0,9.996e-05,2]
[348485907,1736569847145,-500.0,9.996e-05,2]
[348485908,1736569847155,-573.83452664,9.996e-05,2]
[348485909,1736569847165,-686.69,9.996e-05,2]
[348485910,1736569847175,-2064.85,9.996e-05,2]
[348485911,1736569847185,-500.0,9.996e-05,2]
[348485912,1736569847198,-500.0,9.996e-05,2]
[348485913,1736569847208,-500.0,9.996e-05,2]
[348485914,1736569847218,-161.61933868,9.996e-05,2]
[348485915,1736569847229,-500.0,9.996e-05,2]
[348485916,1736569847239,-500.0,9.996e-05,2]
[348485917,1736569847250,-500.0,9.996e-05,2]
[348485918,1736569847259,-510.11,9.996e-05,2]
[348485919,1736569847269,-501.5416412,9.996e-05,2]
[348485920,1736569847280,-502.57631955,9.996e-05,2]
[348485921,1736569847291,-500.86295025,9.996e-05,2]
[348485922,1736569847301,-500.0,9.996e-05,2]
[348485923,1736569847311,-501.77054457,9.996e-05,2]
[348485924,1736569847321,-501.2680497,9.996e-05,2]
[348485925,1736569847331,-500.0,9.996e-05,2]
[348485926,1736569847341,-500.0,9.996e-05,2]
[348485927,1736569847351,-502.34433829,9.996e-05,2]
[348485928,1736569847361,-500.0,9.996e-05,2]
[348485929,1736569847370,-500.0,9.996e-05,2]
[348485930,1736569847380,-500.0,9.996e-05,2]
[348485931,1736569847389,-502.86429995,9.996e-05,2]
[348485932,1736569847399,-501.07539675,9.996e-05,2]
[348485933,1736569847409,-500.0,9.996e-05,2]
[348485934,1736569847418,-500.0,9.996e-05,2]
[348485935,1736569847428,-500.0,9.996e-05,2]
[348485936,1736569847438,-500.0,9.996e-05,2]
[348485937,1736569847447,-503.10904293,9.996e-05,2]
[348485938,1736569847457,-344.43273643,9.996e-05,2]
[348485939,1736569847468,-500.0,9.996e-05,2]
[348485940,1736569847478,-500.61430562,9.996e-05,2]
[348485941,1736569847487,-500.0,9.996e-05,2]
[348485942,1736569847497,-500.0,9.996e-05,2]
[348485943,1736569847507,-501.61385352,9.996e-05,2]
[348485944,1736569847517,-500.0,9.996e-05,2]
[348485945,1736569847526,-500.0,9.996e-05,2]
[348485946,1736569847537,-498.95403899,9.996e-05,2]
[348485947,1736569847546,-500.0,9.996e-05,2]
[348485948,1736569847556,-508.25945911,9.996e-05,2]
[348485949,1736569847566,-500.0,9.996e-05,2]
[348485950,1736569847576,-503.07832634,9.996e-05,2]
[348485951,1736569847585,-500.0,9.996e-05,2]
[348485952,1736569847595,-500.0,9.996e-05,2]
[348485953,1736569847604,-500.0,9.996e-05,2]
[348485954,1736569847614,-615.89874388,9.996e-05,2]
[348485955,1736569847624,-500.0,9.996e-05,2]
[348485956,1736569847634,-501.39064329,9.996e-05,2]
[348485957,1736569847644,-500.0,9.996e-05,2]
[348485958,1736569847654,-500.0,9.996e-05,2]
[348485959,1736569847664,-500.0,9.996e-05,2]
[348485960,1736569847674,-500.0,9.996e-05,2]
[348485961,1736569847684,-502.36305693,9.996e-05,2]
[348485962,1736569847695,-506.30021544,9.996e-05,2]
[348485963,1736569847705,-500.0,9.996e-05,2]
[348485964,1736569847714,-500.0,9.996e-05,2]
[348485965,1736569847724,-502.07701107,9.996e-05,2]
[348485966,1736569847733,-501.54527292,9.996e-05,2]
[348485967,1736569847743,-501.04895924,9.996e-05,2]
[348485968,1736569847753,-500.0,9.996e-05,2]
[348485969,1736569847764,-541.40564365,9.996e-05,2]
[348485970,1736569847773,-500.0,9.996e-05,2]
[348485971,1736569847783,-500.71790908,9.996e-05,2]
[348485972,1736569847793,-500.0,9.996e-05,2]
[348485973,1736569847804,-500.0,9.996e-05,2]
[348485974,1736569847814,-500.0,9.996e-05,2]
[348485975,1736569847824,-500.0,9.996e-05,2]
[348485976,1736569847834,-500.0,9.996e-05,2]
[348485977,1736569847844,-500.0,9.996e-05,2]
[348485978,1736569847854,-502.27273123,9.996e-05,2]
[348485979,1736569847864,-500.92512264,9.996e-05,2]
[348485980,1736569847875,-500.0,9.996e-05,2]
[348485981,1736569847884,-500.0,9.996e-05,2]
[348485982,1736569847895,-504.26095441,9.996e-05,2]
[348485983,1736569847905,-528.17571665,9.996e-05,2]
[348485984,1736569847914,-500.0,9.996e-05,2]
[348485985,1736569847924,-504.72616875,9.996e-05,2]
[348485986,1736569847935,-500.0,9.996e-05,2]
[348485987,1736569847945,-155.63491937,9.996e-05,2]
[348485988,1736569847955,-502.47469632,9.996e-05,2]
[348485989,1736569847965,-514.03164987,9.996e-05,2]
[348485990,1736569847975,-500.0,9.996e-05,2]
[348485991,1736569847985,-500.0,9.996e-05,2]
[348485992,1736569847995,-500.0,9.996e-05,2]
[348485993,1736569848005,-506.7022708,9.996e-05,2]
[348485994,1736569848014,-504.43537491,9.996e-05,2]
[348485995,1736569848024,-503.72050867,9.996e-05,2]
[348485996,1736569848034,-500.0,9.996e-05,2]
[348485997,1736569848043,-506.30359136,9.996e-05,2]
[348485998,1736569848053,-500.0,9.996e-05,2]
[348485999,1736569848063,-501.07783177,9.996e-05,2]
[348486000,1736569848072,-502.56507449,9.996e-05,2]
[348486001,1736569848082,-500.0,9.996e-05,2]
[348486002,1736569848092,-500.0,9.996e-05,2]
[348486003,1736569848101,-500.0,9.996e-05,2]
[348486004,1736569848110,-576.42785167,9.996e-05,2]
[348486005,1736569848120,-501.88944256,9.996e-05,2]
[348486006,1736569848129,-500.0,9.996e-05,2]
[348486007,1736569848139,-500.0,9.996e-05,2]
[348486008,1736569848149,-501.30072302,9.996e-05,2]
[348486009,1736569848158,-500.55109583,9.996e-05,2]
[348486010,1736569848167,-502.11284764,9.996e-05,2]
[348486011,1736569848177,-500.0,9.996e-05,2]
[348486012,1736569848187,-780.39,9.996e-05,2]
[348486013,1736569848196,-501.93934309,9.996e-05,2]
[348486014,1736569848206,-502.07118135,9.996e-05,2]
[348486015,1736569848215,-502.00402069,9.996e-05,2]
[348486016,1736569848224,-500.0,9.996e-05,2]
[348486017,1736569848234,-502.01941593,9.996e-05,2]
[348486018,1736569848244,-500.0,9.996e-05,2]
[348486019,1736569848254,-500.0,9.996e-05,2]
[348486020,1736569848263,-500.0,9.996e-05,2]
[348486021,1736569848273,-500.0,9.996e-05,2]
[348486022,1736569848283,-501.59604013,9.996e-05,2]
[348486023,1736569848293,-500.0,9.996e-05,2]
[348486024,1736569848302,-500.0,9.996e-05,2]
[348486025,1736569848312,-500.0,9.996e-05,2]
[348486026,1736569848323,-561.53,9.996e-05,2]
[348486027,1736569848333,-507.24218465,9.996e-05,2]
[348486028,1736569848343,-500.0,9.996e-05,2]
[348486029,1736569848353,-500.0,9.996e-05,2]
[348486030,1736569848606,-500.0,9.996e-05,2]
[348486031,1736569848617,-513.38180798,9.996e-05,2]
[348486032,1736569848627,-501.65981154,9.996e-05,2]
[348486033,1736569848637,-500.0,9.996e-05,2]
[348486034,1736569848647,-500.0,9.996e-05,2]
[348486035,1736569848657,-531.5304504,9.996e-05,2]
[348486036,1736569848668,-505.02456963,9.996e-05,2]
[348486037,1736569848677,-500.0,9.996e-05,2]
[348486038,1736569848688,-565.18972652,9.996e-05,2]
[348486039,1736569848698,-500.0,9.996e-05,2]
[348486040,1736569848709,-500.0,9.996e-05,2]
[348486041,1736569848719,-504.51180752,9.996e-05,2]
[348486042,1736569848730,-500.0,9.996e-05,2]
[348486043,1736569848739,-300.0,9.996e-05,2]
[348486044,1736569848748,-500.0,9.996e-05,2]
[348486045,1736569848758,-500.0,9.996e-05,2]
[348486046,1736569848770,-500.0,9.996e-05,2]
[348486047,1736569848780,-515.74137141,9.996e-05,2]
[348486048,1736569848791,-500.98154509,9.996e-05,2]
[348486049,1736569848800,-500.0,9.996e-05,2]
[348486050,1736569848810,-500.0,9.996e-05,2]
[348486051,1736569848820,-500.0,9.996e-05,2]
[348486052,1736569848830,-505.16841288,9.996e-05,2]
[348486053,1736569848840,-511.47165954,9.996e-05,2]
[348486054,1736569848849,-500.0,9.996e-05,2]
[348486055,1736569848858,-507.11896708,9.996e-05,2]
[348486056,1736569848868,-500.0,9.996e-05,2]
[348486057,1736569848878,-500.90043705,9.996e-05,2]
[348486058,1736569848888,-500.0,9.996e-05,2]
[348486059,1736569848898,-500.0,9.996e-05,2]
[348486060,1736569848908,-507.38829935,9.996e-05,2]
[348486061,1736569848918,-1277.55,9.996e-05,2]
[348486062,1736569848929,-1162.19,9.996e-05,2]
[348486063,1736569848939,-405.07,9.996e-05,2]
[348486064,1736569848949,-500.0,9.996e-05,2]
[348486065,1736569848959,-281.55620867,9.996e-05,2]
[348486066,1736569848969,-505.32322913,9.996e-05,2]
[348486067,1736569848979,-500.0,9.996e-05,2]
[348486068,1736569848988,-503.87135671,9.996e-05,2]
[348486069,1736569848998,-500.0,9.996e-05,2]
[348486070,1736569849008,-500.0,9.996e-05,2]
[348486071,1736569849018,-516.13583277,9.996e-05,2]
[348486072,1736569849028,-520.28938568,9.996e-05,2]
[348486073,1736569849037,-500.0,9.996e-05,2]
[348486074,1736569849047,-502.10347725,9.996e-05,2]
[348486075,1736569849056,-516.73584593,9.996e-05,2]
[348486076,1736569849065,-500.0,9.996e-05,2]
[348486077,1736569849076,-500.0,9.996e-05,2]
[348486078,1736569849085,-504.992064,9.996e-05,2]
[348486079,1736569849096,-508.18103465,9.996e-05,2]
[348486080,1736569849106,-500.0,9.996e-05,2]
[348486081,1736569849116,-500.0,9.996e-05,2]
[348486082,1736569849125,-500.0,9.996e-05,2]